Cogmind - Beta 17 @@@ ROGUE MODE // 2026.07.16 @ 11:22:35 // Winter2019/RPGLIKE Player: Gallgagger Result: Self-destructed Performance ------------- Evolutions (1) 500 Regions Visited (6) 1200 Robots Destroyed (0) 0 Value Destroyed (0) 0 Prototype IDs (24) 480 Alien Tech Used (0) 0 Bonus (507) 507 TOTAL SCORE: 2687 Bonus ------- Pacifist 200 Follower Combat Kills 7 Aligned with FarCom 300 Cogmind --------- Core Integrity 355/900 Matter 49/300 Energy 280/280 System Corruption 2% Temperature Cool (2) Movement Flying (40) Location -8/Mines Parts ------- > --- POWER (1) -------- Heavy Ion Engine > --- PROPULSION (2) --- Flight Unit > --- UTILITY (2) ------ Modified TNC > --- WEAPON (2) ------- Autogun > --- INVENTORY (2) ---- PSU Rigger Peak State ------------ > --- POWER ------------ Heavy Ion Engine > --- PROPULSION ------- Flight Unit > --- UTILITY ---------- Modified TNC > --- WEAPON ----------- Autogun > --- INVENTORY -------- PSU Rigger Chronowheel [Rating: 14] Favorites ----------- Power Heavy Ion Engine Engine Heavy Ion Engine Propulsion Flight Unit Flight Unit Flight Unit Utility Modified TNC Processor Modified TNC Weapon Autogun Ballistic Gun Autogun Build | -11 -10 -10 -9 -9 -9 -8 ------- Run | Yrd Mat Min Mat Min Exi Min Slots Evolved 3 | . . . 2 . 1 . Power . | . . . . . . . Propulsion 1 | . . . 1 . . . Utility 1 | . . . . . 1 . Weapon 1 | . . . 1 . . . Parts Attached 4 | . . . 3 . 1 . Power 1 | . . . 1 . . . Engine 1 | . . . 1 . . . Core . | . . . . . . . Reactor . | . . . . . . . Propulsion 1 | . . . 1 . . . Treads . | . . . . . . . Leg . | . . . . . . . Wheel . | . . . . . . . Hover . | . . . . . . . Flight 1 | . . . 1 . . . Utility 1 | . . . . . 1 . Device . | . . . . . . . Storage . | . . . . . . . Processor 1 | . . . . . 1 . Hackware . | . . . . . . . Protection . | . . . . . . . Artifact . | . . . . . . . Weapon 1 | . . . 1 . . . Energy Gun . | . . . . . . . Energy Cannon . | . . . . . . . Ballistic Gun 1 | . . . 1 . . . Ballistic Cannon . | . . . . . . . Launcher . | . . . . . . . Special Weapon . | . . . . . . . Impact Weapon . | . . . . . . . Slashing Weapon . | . . . . . . . Piercing Weapon . | . . . . . . . Special Melee Weapon . | . . . . . . . Unidentified Prototypes 1 | . . . 1 . . . Parts Lost . | . . . . . . . Power . | . . . . . . . Propulsion . | . . . . . . . Utility . | . . . . . . . Weapon . | . . . . . . . Highest Loss Streak . | . . . . . . . To Critical Strikes . | . . . . . . . Average Backups . | . . . . . 1 1 Power . | . . . . . . . Propulsion . | . . . . . . . Utility . | . . . . . . 1 Weapon . | . . . . . . . Tool/Special . | . . . . . . . Unused Backups 2 | . . . . . 1 1 Power . | . . . . . . . Propulsion . | . . . . . . . Utility 1 | . . . . . . 1 Weapon . | . . . . . . . Tool/Special 1 | . . . . . 1 . Average Slot Usage (%) 44 | . . . 36 50 61 57 Engine 13 | . . . 13 16 16 14 Flight 11 | . . . 6 16 16 14 Processor 4 | . . . . . 11 14 Ballistic Gun 13 | . . . 14 16 16 14 Peak Build Rating 14 | . . . 6 6 14 12 Average Rating 7 | . . . 5 6 12 12 On Entrance 3 | . . . . 6 6 12 Avg Prop Armor Cover (%) . | . . . . . . . Naked Turns 67 | . 30 24 13 . . . Heaviest Build 11 | . . . 11 11 11 11 Greatest Support 14 | 3 3 3 14 14 14 14 Greatest Overweight (x) 3 | . . . 3 . . . Average Overweight (x) . | . . . . . . . Largest Inventory Capacity 2 | . . . . 2 2 2 Average Capacity . | . . . . 1 2 2 Most Carried 2 | . . . . . 2 1 Average Carried . | . . . . . 1 1 Final Capacity 2 | . . . . 2 2 2 Final Carried 1 | . . . . . 1 1 Class Distribution -------------------- 100% | Mutant Dominant Class ---------------- Mutant | -10/Materials Mutant | -10/Mines Mutant | -9/Materials Mutant | -9/Mines Mutant | -9/Exiles Mutant | -8/Mines Resources | -11 -10 -10 -9 -9 -9 -8 ----------- Run | Yrd Mat Min Mat Min Exi Min Matter Collected . | . . . . . . . Remotely . | . . . . . . . Salvage Created . | . . . . . . . Parts . | . . . . . . . Haulers Intercepted . | . . . . . . . Recyclers Shooed . | . . . . . . . Parts Field Recycled . | . . . . . . . Retrieved Matter . | . . . . . . . Parts Self-Destructed . | . . . . . . . Prevented . | . . . . . . . Parts Restored . | . . . . . . . Kills | -11 -10 -10 -9 -9 -9 -8 ------- Run | Yrd Mat Min Mat Min Exi Min Combat Hostiles Destroyed . | . . . . . . . Classes Destroyed . | . . . . . . . Best Kill Streak . | . . . . . . . Combat Bots Only . | . . . . . . . Max Kills in Single Turn . | . . . . . . . Gunslinging . | . . . . . . . Exploded . | . . . . . . . Melee . | . . . . . . . Uniques/NPCs Destroyed . | . . . . . . . Combat | -11 -10 -10 -9 -9 -9 -8 -------- Run | Yrd Mat Min Mat Min Exi Min Hostile Shots Fired 70 | . 14 3 53 . . . Missed 30 | . 6 1 23 . . . Hits 40 | . 8 2 30 . . . Projectile 40 | . 8 2 30 . . . Critical Strikes 2 | . . 1 1 . . . Damage Taken 598 | . 109 26 399 . 64 . Core 545 | . 109 26 346 . 64 . Absorbed by Shields . | . . . . . . . Redirected to Core 179 | . . . 179 . . . Core Remaining (%) 88 | 100 . 77 . . . . Volleys Fired . | . . . . . . . Largest . | . . . . . . . Hottest . | . . . . . . . Shots Fired . | . . . . . . . Gun . | . . . . . . . Cannon . | . . . . . . . Launcher . | . . . . . . . Special . | . . . . . . . Kinetic . | . . . . . . . Thermal . | . . . . . . . Explosive . | . . . . . . . Electromagnetic . | . . . . . . . Robot Hit Streak . | . . . . . . . Robot Miss Streak . | . . . . . . . Penetration Max . | . . . . . . . Secondary Targets . | . . . . . . . Shots Hit Robots . | . . . . . . . Core Hits . | . . . . . . . Critical Kills . | . . . . . . . Critical Parts Destroyed . | . . . . . . . Critical Strikes . | . . . . . . . Melee Attacks . | . . . . . . . Impact . | . . . . . . . Slashing . | . . . . . . . Piercing . | . . . . . . . Sneak Attacks . | . . . . . . . Combat Hostiles . | . . . . . . . Follow-up Attacks . | . . . . . . . Damage Inflicted 52 | . . 4 11 . 37 . Guns . | . . . . . . . Cannons . | . . . . . . . Explosions . | . . . . . . . Melee . | . . . . . . . Ramming 52 | . . 4 11 . 37 . Kinetic . | . . . . . . . Thermal . | . . . . . . . Explosive . | . . . . . . . Electromagnetic . | . . . . . . . Impact . | . . . . . . . Slashing . | . . . . . . . Piercing . | . . . . . . . Highest Corruption 2 | . . . 2 2 2 2 Average Corruption 2 | . . . 2 2 2 2 Corruption Purged . | . . . . . . . Corruption Blocked . | . . . . . . . Effects 3 | . . . 2 1 . . Matter Fused 2 | . . . 1 1 . . Data Loss (minor) 1 | . . . 1 . . . Overload Shots . | . . . . . . . Overflow Damage . | . . . . . . . Projectiles . | . . . . . . . Explosions . | . . . . . . . Melee . | . . . . . . . Knockbacks . | . . . . . . . Impact . | . . . . . . . Kinetic . | . . . . . . . Secondary . | . . . . . . . Self-Inflicted Damage 44 | . . 2 5 . 37 . Shots . | . . . . . . . Rammed 3 | . . 1 2 . . . Targets Rammed 3 | . . 1 2 . . . Kicked . | . . . . . . . Crushed . | . . . . . . . Highest Temperature 8 | . . 2 8 . . . Average Temperature 5 | . . 2 8 . . . Received Heat Transfer 285 | . 54 33 198 . . . Siege Activations . | . . . . . . . Martial Activations . | . . . . . . . Shielding Activations . | . . . . . . . Robots Disrupted . | . . . . . . . Combat Hostiles . | . . . . . . . Robots Corrupted . | . . . . . . . Combat Hostiles . | . . . . . . . Parts Fried . | . . . . . . . Impact Corruptions . | . . . . . . . Robots Melted . | . . . . . . . Combat Hostiles . | . . . . . . . Parts Melted . | . . . . . . . Heat Transferred . | . . . . . . . Parts Sabotaged . | . . . . . . . Parts Stolen . | . . . . . . . Parts Stripped . | . . . . . . . Power Chain Reactions . | . . . . . . . Alert | -11 -10 -10 -9 -9 -9 -8 ------- Run | Yrd Mat Min Mat Min Exi Min Maximum Alert Level . | . . . . . . . Low Security (%) 100 | 100 100 100 100 100 . 100 Level 1 . | . . . . . . . Level 2 . | . . . . . . . Level 3 . | . . . . . . . Level 4 . | . . . . . . . Level 5 . | . . . . . . . High Security . | . . . . . . . Max Security . | . . . . . . . Peak Influence 82 | . . . 80 82 . 22 Initial 27 | . . . . 27 . . Average 26 | . . . 20 53 . 7 Influence Increases 225 | . . . 128 75 . 22 Destroy 0b10 Robot/C 20 | . . . . . . 20 Allied During Kill 2 | . . . . . . 2 Successful Hack 8 | . . . 8 . . . Lose Combat Pursuer 195 | . . . 120 75 . . Influence Decreases 203 | . . . 58 93 52 . Entered New Map 95 | . . . . 43 52 . Time Decay 108 | . . . 58 50 . . Squads Dispatched 1 | . . . 1 . . . Investigation 1 | . . . 1 . . . Extermination . | . . . . . . . Reinforcement . | . . . . . . . Assault . | . . . . . . . Garrison . | . . . . . . . Intercept . | . . . . . . . Searches Triggered . | . . . . . . . Construction Impeded . | . . . . . . . Haulers Reinforced . | . . . . . . . Active Scanning Responses . | . . . . . . . Cargo Convoy Interrupts . | . . . . . . . Stealth | -11 -10 -10 -9 -9 -9 -8 --------- Run | Yrd Mat Min Mat Min Exi Min Distress Signals 4 | . 1 1 2 . . . Communications Jammed . | . . . . . . . Distress Signals . | . . . . . . . Times Spotted 43 | . 9 5 23 3 . 3 Peak Tracking Total 13 | . 9 5 13 5 9 3 Tactical Retreats 6 | . . . 4 2 . . Traps | -11 -10 -10 -9 -9 -9 -8 ------- Run | Yrd Mat Min Mat Min Exi Min Traps Triggered . | . . . . . . . Indirectly . | . . . . . . . Trap Hack Attempts . | . . . . . . . Triggered . | . . . . . . . Disarmed . | . . . . . . . Reprogrammed . | . . . . . . . Reused . | . . . . . . . Traps Extracted . | . . . . . . . Installed . | . . . . . . . Triggered . | . . . . . . . Machines | -11 -10 -10 -9 -9 -9 -8 ---------- Run | Yrd Mat Min Mat Min Exi Min Machines Disabled 1 | . . . . . 1 . Max in Single Turn 1 | . . . . . 1 . Machines Repaired . | . . . . . . . Machines Dismantled . | . . . . . . . Machines Sabotaged . | . . . . . . . Overloaded Fab Kills . | . . . . . . . Hacking | -11 -10 -10 -9 -9 -9 -8 --------- Run | Yrd Mat Min Mat Min Exi Min Machines Accessed 4 | . . . 3 . 1 . Terminals 3 | . . . 3 . . . Fabricators . | . . . . . . . Repair Stations . | . . . . . . . Recycling Units . | . . . . . . . Scanalyzers . | . . . . . . . Garrison Access . | . . . . . . . Total Hacks 7 | . . . 6 . 1 . Successful 2 | . . . 1 . 1 . Failed 5 | . . . 5 . . . Catastrophic 3 | . . . 3 . . . Database Lockouts . | . . . . . . . Manual 8 | . . . 7 . 1 . Terminals 6 | . . . 6 . . . Fabricators . | . . . . . . . Repair Stations . | . . . . . . . Recycling Units . | . . . . . . . Scanalyzers . | . . . . . . . Garrison Access . | . . . . . . . Terminal Hacks 2 | . . . 1 . 1 . Branch Access Points 1 | . . . 1 . . . Proto ID Catalog 1 | . . . . . 1 . Fabricator Hacks . | . . . . . . . Repair Station Hacks . | . . . . . . . Recycling Unit Hacks . | . . . . . . . Scanalyzer . | . . . . . . . Garrison Access Hacks . | . . . . . . . Unauthorized Hacks . | . . . . . . . Terminals . | . . . . . . . Fabricators . | . . . . . . . Repair Stations . | . . . . . . . Recycling Units . | . . . . . . . Scanalyzers . | . . . . . . . Garrison Access . | . . . . . . . Data Cores Recovered . | . . . . . . . Used . | . . . . . . . Hacking Detections 2 | . . . 2 . . . Full Trace Events 2 | . . . 2 . . . Feedback Events . | . . . . . . . Feedback Blocked . | . . . . . . . Robot Schematics Acquired . | . . . . . . . Robots Built . | . . . . . . . Authchips . | . . . . . . . Time . | . . . . . . . Total Robot Build Rating . | . . . . . . . Part Schematics Acquired . | . . . . . . . Parts Built . | . . . . . . . Authchips . | . . . . . . . Time . | . . . . . . . Total Part Build Rating . | . . . . . . . Part Studies Acquired . | . . . . . . . Parts Repaired . | . . . . . . . Time . | . . . . . . . Parts Recycled . | . . . . . . . Recycled Matter . | . . . . . . . Retrieved Matter . | . . . . . . . Retrieved Components . | . . . . . . . Parts Scanalyzed . | . . . . . . . Part Schematics Acquired . | . . . . . . . Parts Damaged . | . . . . . . . Bothacking | -11 -10 -10 -9 -9 -9 -8 ------------ Run | Yrd Mat Min Mat Min Exi Min Used RIF Installer . | . . . . . . . Robots Hacked . | . . . . . . . Non-combat . | . . . . . . . Combat . | . . . . . . . Robot Hacks Applied . | . . . . . . . Relay Couplers Released . | . . . . . . . Fabnet Peak Effective % . | . . . . . . . Robots Rewired . | . . . . . . . Allies Hacked . | . . . . . . . Hacks Repelled . | . . . . . . . Allies | -11 -10 -10 -9 -9 -9 -8 -------- Run | Yrd Mat Min Mat Min Exi Min Total Allies 4 | . . 1 . 3 . . Largest Group 3 | . . 1 . 3 3 3 Highest-Rated Group 40 | . . 31 . 40 40 40 Highest-Rated Ally 31 | . . 31 . 16 16 16 Total Orders 4 | . . . . . 4 . STAY 3 | . . . . . 3 . FOLLOW 1 | . . . . . 1 . Ally Attacks 5 | . . 1 . . . 4 Total Damage 41 | . . . . . . 41 Kills 1 | . . . . . . 1 Allies Corrupted . | . . . . . . . Allies Melted . | . . . . . . . Intel | -11 -10 -10 -9 -9 -9 -8 ------- Run | Yrd Mat Min Mat Min Exi Min Active Infowar (turns) 174 | . . . . . 171 3 T.N.C. 174 | . . . . . 171 3 Robot Analysis Total . | . . . . . . . Derelict Logs Recovered 2 | . . 1 . 1 . . Drone Launches . | . . . . . . . Drone Recoveries . | . . . . . . . Exploration | -11 -10 -10 -9 -9 -9 -8 ------------- Run | Yrd Mat Min Mat Min Exi Min Turns Passed 581 | 10 30 24 190 102 222 3 Spaces Moved 1025 | 20 60 45 384 132 377 7 Core 331 | 20 60 45 206 . . . Treads . | . . . . . . . Legs . | . . . . . . . Wheels . | . . . . . . . Hover . | . . . . . . . Flight 694 | . . . 178 132 377 7 Fastest Speed 40 | 50 50 50 40 40 40 40 Average Speed 43 | 50 50 50 45 40 40 40 Slowest Speed 200 | 50 50 50 200 40 40 40 Overloaded Moves . | . . . . . . . Propulsion Burnouts . | . . . . . . . Robots Hopped 12 | . . . 8 4 . . Potential Cave-ins . | . . . . . . . Cave-ins Triggered . | . . . . . . . Time Travels 1 | . . . . . 1 . Exploration Rate (%) 27 | 2 28 17 49 30 63 5 Regions Visited 6 Branch Regions 4 Pre-discovered Areas 1 | . . 1 . . . . Known Exits Taken 1 | . . . 1 . . . Unknown Exits Taken 5 | 1 1 1 . 1 1 . Scrap Searched . | . . . . . . . Spaces Dug . | . . . . . . . Terrain Destroyed . | . . . . . . . Melee . | . . . . . . . Projectile . | . . . . . . . AOE . | . . . . . . . Terrain Rammed 1 | . . . . . 1 . Walls Destroyed . | . . . . . . . Machines Disabled 1 | . . . . . 1 . Actions | -11 -10 -10 -9 -9 -9 -8 --------- Run | Yrd Mat Min Mat Min Exi Min Total 1141 | 19 59 45 388 176 447 7 Wait 124 | . . . 8 49 67 . Move 996 | 19 59 44 368 123 376 7 Hop 11 | . . . 7 4 . . Pick Up 2 | . . . . . 2 . Fast Attach 4 | . . . 3 . 1 . Attach . | . . . . . . . Detach . | . . . . . . . Swap . | . . . . . . . Drop . | . . . . . . . Fire . | . . . . . . . Melee . | . . . . . . . Ram 4 | . . 1 2 . 1 . Kick . | . . . . . . . Crush . | . . . . . . . Escape Stasis . | . . . . . . . Rewire . | . . . . . . . Trap . | . . . . . . . Miscellaneous . | . . . . . . . Route ------- -11/Scrapyard -10/Materials -10/Mines -9/Materials (discovered 2 exits: [*Mat] / *Min) -9/Mines (discovered 2 exits: [*Mat] / *Exi) -9/Exiles -8/Mines History --------- Turn | Location | Event 3 | -11/Scrapyard | Discovered new exit (range 15) 11 | -11/Scrapyard | Entered Materials 39 | -10/Materials | Discovered new exit (range 6) 41 | -10/Materials | Entered Mines 44 | -10/Mines | Received a Mining Laser from a helpful Derelict 62 | -10/Mines | Discovered new exit (range 6) 62 | -10/Mines | Learned location of Storage (-7) 65 | -10/Mines | Entered Materials 67 | -9/Materials | Reached level 2 84 | -9/Materials | Upgraded with Propulsion slot (x1) 84 | -9/Materials | Upgraded with Weapon slot (x1) 143 | -9/Materials | Identified exit to Mines 170 | -9/Materials | Discovered new exit (range 7) 200 | -9/Materials | Core integrity fell below 50% 250 | -9/Materials | Core integrity fell below 20% 255 | -9/Materials | Entered Mines 273 | -9/Mines | Discovered new exit (range 12) 279 | -9/Mines | Learned 4 Materials zone layouts 281 | -9/Mines | Assisted by bots powering up and referring to "LRC-V3" 306 | -9/Mines | Deemed a non-threat by the Exiles lab entrance 306 | -9/Mines | Discovered new exit (range 5) 310 | -9/Mines | Build established: Mutant 357 | -9/Mines | Entered Exiles 357 | -9/Exiles | Accompanied by 3 allies 368 | -9/Exiles | Met 8R-AWN 374 | -9/Exiles | Met EX-HEX 385 | -9/Exiles | Met EX-BIN 391 | -9/Exiles | Aligned with FarCom system 391 | -9/Exiles | Given EX-Vault access code 402 | -9/Exiles | Opened EX-Vault 404 | -9/Exiles | Found Chronowheel 406 | -9/Exiles | Found PSU Rigger 408 | -9/Exiles | Found Modified TNC 417 | -9/Exiles | Warned to stay clear of 0b10 Research branches 431 | -9/Exiles | Met EX-DEC 446 | -9/Exiles | Discovered new exit (range 11) 561 | -9/Exiles | Attacked by the Exiles 577 | -9/Exiles | Upgraded with Utility slot (x1) 577 | -9/Exiles | Activated Chronowheel 577 | -9/Exiles | Spacetime reconverged on an earlier point 579 | -9/Exiles | Stole two prototypes: Modified TNC, PSU Rigger 579 | -9/Exiles | Entered Mines 579 | -8/Mines | Accompanied by 3 allies 581 | -8/Mines | Reached level 3 582 | -8/Mines | Self-destructed Last Messages --------------- EX-DEC: Ah I see we have a visitor. One wrong move in here and I'll invert your atomic chain! 00433_ EX-DEC: "Oops, I hope HEX didn't hear that..." 00446_ EXIT=FOUND 00560_ Slammed into Machine. 00560_ Machine disabled. 00560_ Destabilizing: Core damaged (-27). 00560_ Autogun broken. 00560_ Destabilizing: Short circuit. 00561_ EXILES: Hostile robot within lab perimeter. Defensive protocols time, folks! 00577_ Upgraded: Utility Slot (+1) 00577_ Spacetime feels normal again. 00577_ Spacetime reconverges on this point. LOCATION=UNKNOWN GOAL=ESCAPE 00580_ Trooper 2a suffers critical hit (Destroy). 00580_ Trooper 2a destroyed. 00581_ Reached level 3. 00581_ S-10 Pest destroyed. Map ----- +----------------------------------------------------+ | | | | | | | | | | | | | | | | | | | | | | | | | | | ???????????????????????????????????????????? | | ???????????????????????????????????????????? | | ???????????????????????????????????????????? | | ???????????????????????????????????????????? | | ???????????????????????????????????????????? | | ???????????????????????????????????????????? | | ???????????????????????????????????????????? | | ???????????????????????????????????????????? | | ???????????????????????????????????????????? | | ??????????##########?#?????????????????????? | | ??????????# s # #??????? #??????????? | | ??????????#%= # ## #??????????? | | ??????????# g""" @ #??????????? | | ??????????#s [""" #### # #?????????? | | ??????????# g%""" #???????????????????????? | | ??????????# = #???????????????????????? | | ??????????# #???????????????????????? | | ??????????##########???????????????????????? | | ???????????????????????????????????????????? | | ???????????????????????????????????????????? | | ???????????????????????????????????????????? | | ???????????????????????????????????????????? | | ???????????????????????????????????????????? | | ???????????????????????????????????????????? | | ???????????????????????????????????????????? | | ???????????????????????????????????????????? | | ???????????????????????????????????????????? | | ???????????????????????????????????????????? | | ???????????????????????????????????????????? | | ???????????????????????????????????????????? | | ???????????????????????????????????????????? | | ???????????????????????????????????????????? | | ???????????????????????????????????????????? | | ???????????????????????????????????????????? | | ???????????????????????????????????????????? | | ???????????????????????????????????????????? | | ???????????????????????????????????????????? | +----------------------------------------------------+ Best States ------------- Heat Dissipation 25 Energy Generation 14 Energy Capacity 280 Matter Stores 105 Matter Capacity 300 Sight Range 16 Terrain Scan Density 10 Evasion (%) 62 Item Schematics ----------------- None Robot Schematics ------------------ None Fabricated ------------ Nothing Repaired ---------- Nothing Studied --------- None Alien Tech Used ----------------- None Achievements -------------- None Challenges ------------ None RPGLIKE | -11 -10 -10 -9 -9 -9 -8 --------- Run | Yrd Mat Min Mat Min Exi Min Levels Raised 2 | . . . 1 . . 1 XP Earned 6593 | 3000 . 600 1540 500 350 603 XP Spent 3250 | . . . 1700 1050 500 . Upgrades 13 | . . . 4 8 1 . Propulsion Slot 1 | . . . 1 . . . Utility Slot 1 | . . . . . 1 . Weapon Slot 1 | . . . 1 . . . Core Integrity 6 | . . . . 6 . . Mass Support 2 | . . . 2 . . . Inventory Capacity 2 | . . . . 2 . . Protomatter Created . | . . . . . . . Protomatter Decayed . | . . . . . . . Game ------ Seed StorageWaveMaterializer Manual? 0 Play Time 00:05:05 Cumulative 667.9 hours Start 2026.07.16 @ 11:16:41 End 2026.07.16 @ 11:22:35 Sessions 1 Manual Loads 0 Difficulty Rogue Special Mode Winter2019/RPGLIKE Game No. 330 Rogue 176 Adventurer 154 Explorer 0 Win Type - Total 22 Types 4/5/4/3/2/1/0/1/1/1 Lore% 95 Gallery% 88 Achievement% 68 Wizard Run 0 Options --------- Layout 0 ASCII 0 Keyboard 0 Movement Numpad Keybinds 0 Fullscreen 2 Font 18/SmallcapsGlow Map View 76x50 Zoom Use 0% Tactical HUD 1 Map Filters NONE Filters NONE Steam 1 RUN: 36efd4b1-cdaf-452d-b2c3-ada6fa9ae487